[Event "ESTCC 50 2019"]
[Site "Mali Losinj"]
[Date "2019.09.23"]
[Round "6.7"]
[White "Konopka, Michal"]
[Black "Shcherbakov, Ruslan"]
[Result "0-1"]
[ECO "A15"]
[WhiteElo "2351"]
[BlackElo "2516"]
[Annotator "ChessBase"]
[PlyCount "110"]
[EventDate "2019.09.18"]
[EventType "team-tourn"]
[EventCountry "CRO"]
[SourceTitle "playchess.com"]
[Source "ChessBase"]
[SourceQuality "1"]
[WhiteTeam "Czech Republic"]
[BlackTeam "Russia"]
[WhiteTeamCountry "CZE"]
[BlackTeamCountry "RUS"]
[TimeControl "40/5400+30:1800+30"]

1. Nf3 {[%emt 0:08:30]} Nf6 {[%emt 0:00:30]} 2. c4 {[%emt 0:00:30]} b6 {[%emt 0:00:30]} 3. g3 {[%emt 0:01:30]} Bb7 {[%emt 0:00:30]} 4. Bg2 {[%emt 0:00:00]} g6 {[%emt 0:01:30]} 5. b3 {[%emt 0:05:00]} Bg7 {[%emt 0:02:30]} 6. Bb2 {[%emt 0:00:30]} O-O {[%emt 0:01:30]} 7. O-O {[%emt 0:00:30]} e6 {[%emt 0:03:30]} 8. Nc3 {[%emt 0:05:30]} d5 {[%emt 0:10:30]} 9. cxd5 {[%emt 0:06:30]} exd5 {[%emt 0:07:30]} 10. d4 {[%emt 0:01:30]} Nbd7 {[%emt 0:00:30]} 11. Ne5 {[%emt 0:11:30]} Re8 {[%emt 0:17:30]} 12. Nxd7 {[%emt 0:10:30]} Qxd7 {[%emt 0:00:30]} 13. Qc2 {[%emt 0:02:30]} Rac8 {[%emt 0:04:30]} 14. Rfd1 {[%emt 0:07:30]} h5 {[%emt 0:01:30]} 15. Qd3 {[%emt 0:04:30]} Ne4 {[%emt 0:04:30]} 16. e3 {[%emt 0:04:30]} h4 {[%emt 0:05:30]} 17. Qf1 {[%emt 0:02:30]} hxg3 {[%emt 0:04:30]} 18. hxg3 {[%emt 0:00:30]} Ng5 {[%emt 0:02:30]} 19. Rac1 {[%emt 0:01:30]} Rcd8 {[%emt 0:07:30]} 20. Rd2 {[%emt 0:07:16]} c5 {[%emt 0:06:54]} 21. Ne2 {[%emt 0:07:51]} c4 {[%emt 0:01:01]} 22. Nf4 {[%emt 0:01:23]} b5 {[%emt 0:00:44]} 23. bxc4 {[%emt 0:04:43]} dxc4 {[%emt 0:03:30]} 24. d5 {[%emt 0:00:06]} Ne4 {[%emt 0:00:40]} 25. Bxe4 {[%emt 0:00:50]} Bxb2 {[%emt 0:00:17]} 26. Rxb2 {[%emt 0:01:11]} Rxe4 {[%emt 0:00:04]} 27. Rd2 {[%emt 0:01:28]} Qf5 {[%emt 0:02:54]} 28. Qe2 {[%emt 0:02:05]} Qe5 {[%emt 0:06:11]} 29. Rcd1 {[%emt 0:00:23]} Rd6 {[%emt 0:03:17]} 30. Rd4 {[%emt 0:00:58]} Rxd4 {[%emt 0:00:22]} 31. Rxd4 {[%emt 0:00:02]} g5 {[%emt 0:00:10]} 32. Qg4 {[%emt 0:00:23]} Kf8 {[%emt 0:00:37]} 33. Ne2 {[%emt 0:00:46]} Rxd5 {[%emt 0:00:11]} 34. Kf1 {[%emt 0:00:53]} b4 {[%emt 0:00:29]} 35. Ke1 {[%emt 0:00:33]} b3 {[%emt 0:01:34]} 36. axb3 {[%emt 0:00:08]} cxb3 {[%emt 0:00:14]} 37. Rxd5 {[%emt 0:00:24]} Bxd5 {[%emt 0:00:17]} 38. Qb4+ {[%emt 0:00:18]} Kg8 {[%emt 0:00:46]} 39. Nd4 {[%emt 0:00:07]} Be6 {[%emt 0:00:46]} 40. Nxe6 {[%emt 0:01:30]} Qxe6 {[%emt 0:00:00]} 41. Qb5 {[%emt 0:09:42]} Kh7 {[%emt 0:17:33]} 42. Kd2 {[%emt 0:07:42]} Qf6 {[%emt 0:05:32]} 43. Qxb3 {[%emt 0:02:05]} Qxf2+ {[%emt 0:00:16]} 44. Kd3 {[%emt 0:00:47]} Kg6 {[%emt 0:00:44]} 45. Qb8 {[%emt 0:04:51]} Qf5+ {[%emt 0:01:07]} 46. e4 {[%emt 0:01:28]} Qf3+ {[%emt 0:00:14]} 47. Kd4 {[%emt 0:00:25]} Qf6+ {[%emt 0:01:09]} 48. Kd3 {[%emt 0:02:22]} Qf3+ {[%emt 0:01:15]} 49. Kd4 {[%emt 0:00:09]} Kh5 {[%emt 0:00:45]} 50. Qc8 {[%emt 0:05:04]} Qxg3 {[%emt 0:01:53]} 51. Qh8+ {[%emt 0:00:07]} Kg4 {[%emt 0:00:13]} 52. Qc8+ {[%emt 0:00:11]} Kf3 {[%emt 0:00:15]} 53. Qb7 {[%emt 0:01:43]} Qf4 {[%emt 0:02:28]} 54. Qe7 {[%emt 0:00:57]} Qe3+ {[%emt 0:00:49]} 55. Kd5 {[%emt 0:00:01]} Qd3+ {[%emt 0:00:10]} 0-1

[Event "ESTCC 50 2019"]
[Site "Mali Losinj"]
[Date "2019.09.23"]
[Round "6.8"]
[White "Yakovich, Yuri"]
[Black "Spacek, Petr"]
[Result "1-0"]
[ECO "D35"]
[WhiteElo "2518"]
[BlackElo "2352"]
[Annotator "ChessBase"]
[PlyCount "119"]
[EventDate "2019.09.18"]
[EventType "team-tourn"]
[EventCountry "CRO"]
[SourceTitle "playchess.com"]
[Source "ChessBase"]
[SourceQuality "1"]
[WhiteTeam "Russia"]
[BlackTeam "Czech Republic"]
[WhiteTeamCountry "RUS"]
[BlackTeamCountry "CZE"]
[TimeControl "40/5400+30:1800+30"]

1. d4 {[%emt 0:00:30]} d5 {[%emt 0:00:30]} 2. c4 {[%emt 0:00:00]} e6 {[%emt 0:00:30]} 3. Nc3 {[%emt 0:00:00]} Be7 {[%emt 0:00:30]} 4. cxd5 {[%emt 0:00:00]} exd5 {[%emt 0:00:00]} 5. Bf4 {[%emt 0:00:00]} Nf6 {[%emt 0:00:00]} 6. e3 {[%emt 0:00:30]} O-O {[%emt 0:01:30]} 7. Bd3 {[%emt 0:00:00]} c5 {[%emt 0:00:00]} 8. Nge2 {[%emt 0:00:00]} Nc6 {[%emt 0:00:00]} 9. O-O {[%emt 0:00:30]} cxd4 {[%emt 0:01:30]} 10. Nxd4 {[%emt 0:00:30]} Nxd4 {[%emt 0:00:30]} 11. exd4 {[%emt 0:00:00]} a6 {[%emt 0:00:30]} 12. Rc1 {[%emt 0:09:00]} Be6 {[%emt 0:03:30]} 13. Na4 {[%emt 0:12:30]} Bd6 {[%emt 0:10:30]} 14. Bxd6 {[%emt 0:09:30]} Qxd6 {[%emt 0:00:30]} 15. Nc5 {[%emt 0:00:30]} Bc8 {[%emt 0:26:30]} 16. Qb3 {[%emt 0:14:30]} Qf4 {[%emt 0:04:30]} 17. Qc3 {[%emt 0:06:30]} Ng4 {[%emt 0:04:30]} 18. g3 {[%emt 0:00:30]} Qh6 {[%emt 0:01:30]} 19. h4 {[%emt 0:00:30]} b6 {[%emt 0:00:30]} 20. Nb3 {[%emt 0:00:30]} Bd7 {[%emt 0:04:30]} 21. Qd2 {[%emt 0:02:30]} Qd6 {[%emt 0:00:30]} 22. Rc3 {[%emt 0:04:30]} a5 {[%emt 0:02:30]} 23. Nc1 {[%emt 0:04:30]} Nf6 {[%emt 0:06:30]} 24. Ne2 {[%emt 0:05:30]} Ne4 {[%emt 0:03:30]} 25. Bxe4 {[%emt 0:00:30]} dxe4 {[%emt 0:00:30]} 26. d5 {[%emt 0:00:30]} Rfd8 {[%emt 0:08:49]} 27. Nf4 {[%emt 0:01:30]} h6 {[%emt 0:01:53]} 28. Qd4 {[%emt 0:02:30]} f5 {[%emt 0:03:57]} 29. Rfc1 {[%emt 0:06:49]} Rac8 {[%emt 0:00:19]} 30. h5 {[%emt 0:01:35]} Rxc3 {[%emt 0:00:35]} 31. Rxc3 {[%emt 0:00:37]} Rc8 {[%emt 0:00:08]} 32. Kg2 {[%emt 0:08:33]} Rxc3 {[%emt 0:06:56]} 33. Qxc3 {[%emt 0:00:56]} Kf7 {[%emt 0:00:50]} 34. Qc4 {[%emt 0:01:35]} Qc5 {[%emt 0:01:50]} 35. Qa6 {[%emt 0:01:42]} Qc7 {[%emt 0:00:33]} 36. a3 {[%emt 0:02:36]} Bc8 {[%emt 0:00:48]} 37. Qb5 {[%emt 0:01:45]} Bd7 {[%emt 0:00:11]} 38. Qb3 {[%emt 0:00:59]} Qd6 {[%emt 0:01:46]} 39. Qc3 {[%emt 0:00:26]} Kg8 {[%emt 0:01:18]} 40. b4 {[%emt 0:00:45]} axb4 {[%emt 0:00:44]} 41. axb4 {[%emt 0:30:25]} Kh7 {[%emt 0:01:23]} 42. Qd4 {[%emt 0:00:00]} Bc8 {[%emt 0:02:30]} 43. Kh2 {[%emt 0:00:00]} Bd7 {[%emt 0:00:30]} 44. Ng6 {[%emt 0:00:00]} Kg8 {[%emt 0:01:30]} 45. Qa1 {[%emt 0:00:00]} Be8 {[%emt 0:08:30]} 46. Qa8 {[%emt 0:00:00]} Kf7 {[%emt 0:00:30]} 47. Qc8 {[%emt 0:01:52]} Qxd5 {[%emt 0:03:47]} 48. Qc7+ {[%emt 0:00:07]} Bd7 {[%emt 0:00:08]} 49. Ne5+ {[%emt 0:00:55]} Ke6 {[%emt 0:02:50]} 50. Nxd7 {[%emt 0:00:17]} Qxd7 {[%emt 0:00:03]} 51. Qxb6+ {[%emt 0:00:02]} Kf7 {[%emt 0:03:15]} 52. Qc5 {[%emt 0:01:03]} Kg8 {[%emt 0:08:59]} 53. b5 {[%emt 0:01:31]} Qf7 {[%emt 0:00:11]} 54. Kg1 {[%emt 0:02:07]} Qxh5 {[%emt 0:00:34]} 55. Qd5+ {[%emt 0:00:21]} Kh7 {[%emt 0:01:49]} 56. b6 {[%emt 0:01:15]} e3 {[%emt 0:00:38]} 57. b7 {[%emt 0:00:59]} exf2+ {[%emt 0:02:12]} 58. Kxf2 {[%emt 0:00:06]} Qe8 {[%emt 0:01:20]} 59. Qxf5+ {[%emt 0:00:09]} g6 {[%emt 0:00:01]} 60. Qf4 {[%emt 0:00:37]} 1-0

[Event "ESTCC 50 2019"]
[Site "Mali Losinj"]
[Date "2019.09.23"]
[Round "6.10"]
[White "Mohr, Georg"]
[Black "Wegerer, Fred"]
[Result "1-0"]
[ECO "D11"]
[WhiteElo "2445"]
[BlackElo "2171"]
[Annotator "NA"]
[PlyCount "115"]
[EventDate "2019.09.18"]
[EventType "team-tourn"]
[EventCountry "CRO"]
[SourceTitle "playchess.com"]
[Source "ChessBase"]
[SourceQuality "1"]
[WhiteTeam "Slovenia"]
[BlackTeam "Austria"]
[WhiteTeamCountry "SLO"]
[BlackTeamCountry "AUT"]
[TimeControl "40/5400+30:1800+30"]

1. d4 {[%emt 0:04:30]} Nf6 {[%emt 0:03:30]} 2. g3 {[%emt 0:02:30]} d5 {[%emt 0:01:30]} 3. Bg2 {[%emt 0:01:30]} c6 {[%emt 0:00:30]} 4. Nf3 {[%emt 0:00:00]} Bf5 {[%emt 0:01:30]} 5. O-O {[%emt 0:01:00]} h6 {[%emt 0:03:30]} 6. c4 {[%emt 0:01:30]} e6 {[%emt 0:00:30]} 7. Nc3 {[%emt 0:00:30]} Nbd7 {[%emt 0:01:30]} 8. b3 {[%emt 0:15:30]} Bb4 {[%emt 0:04:30]} 9. Bb2 {[%emt 0:05:30]} Ne4 {[%emt 0:06:30]} 10. Qc1 {[%emt 0:17:30]} O-O {[%emt 0:01:30]} 11. a3 {[%emt 0:05:30]} Be7 {[%emt 0:02:30]} 12. Re1 {[%emt 0:06:30]} Nxc3 {[%emt 0:02:30]} 13. Bxc3 {[%emt 0:00:30]} Be4 {[%emt 0:00:30]} 14. Bf1 {[%emt 0:01:30]} Bg6 {[%emt 0:13:30]} 15. Nd2 {[%emt 0:00:30]} Nf6 {[%emt 0:11:30]} 16. Bg2 {[%emt 0:01:30]} Rc8 {[%emt 0:02:30]} 17. a4 {[%emt 0:06:30]} b6 {[%emt 0:09:30]} 18. Qb2 {[%emt 0:00:30]} Qd7 {[%emt 0:11:30]} 19. b4 {[%emt 0:04:30]} Rfd8 {[%emt 0:08:06]} 20. Red1 {[%emt 0:03:47]} Bd6 {[%emt 0:05:50]} 21. Qb3 {[%emt 0:05:45]} Qe8 {[%emt 0:02:32]} 22. Qb2 {[%emt 0:01:47]} Bb8 {[%emt 0:01:47]} 23. Rdc1 {[%emt 0:01:32]} Qe7 {[%emt 0:00:44]} 24. a5 {[%emt 0:03:11]} b5 {[%emt 0:00:47]} 25. cxb5 {[%emt 0:00:30]} cxb5 {[%emt 0:00:01]} 26. Nb3 {[%emt 0:00:14]} Rc4 {[%emt 0:00:52]} 27. e3 {[%emt 0:02:15]} Ne4 {[%emt 0:00:41]} 28. Bf1 {[%emt 0:02:17]} Qf6 {[%emt 0:01:35]} 29. Be1 {[%emt 0:02:31]} h5 {[%emt 0:00:37]} 30. Nd2 {[%emt 0:01:15]} h4 {[%emt 0:00:42]} 31. Nxc4 {[%emt 0:00:59]} dxc4 {[%emt 0:00:20]} 32. Bg2 {[%emt 0:00:14]} Qf5 {[%emt 0:01:42]} 33. Qe2 {[%emt 0:00:28]} hxg3 {[%emt 0:00:32]} 34. hxg3 {[%emt 0:00:34]} Qg5 {[%emt 0:00:36]} 35. f4 {[%emt 0:01:16]} Qh6 {[%emt 0:00:31]} 36. g4 {[%emt 0:00:11]} f5 {[%emt 0:00:00]} 37. Bxe4 {[%emt 0:00:00]} fxe4 {[%emt 0:00:34]} 38. Qh2 {[%emt 0:00:21]} a6 {[%emt 0:00:43]} 39. Ra2 {[%emt 0:00:30]} Be8 {[%emt 0:00:52]} 40. Qxh6 {[%emt 0:00:30]} gxh6 {[%emt 0:00:40]} 41. Rh2 {[%emt 0:30:30]} Kg7 {[%emt 0:30:38]} 42. Bc3 {[%emt 0:00:00]} Rd5 {[%emt 0:00:00]} 43. Kf2 {[%emt 0:00:00]} Bd6 {[%emt 0:00:00]} 44. Rch1 {[%emt 0:00:00]} h5 {[%emt 0:00:00]} 45. Kg3 {[%emt 0:00:00]} Kh6 {[%emt 0:00:00]} 46. Rh4 {[%emt 0:00:00]} Bg6 {[%emt 0:00:00]} 47. Kg2 {[%emt 0:00:00]} Be7 {[%emt 0:00:00]} 48. g5+ {[%emt 0:00:00]} Kg7 {[%emt 0:00:00]} 49. Rxh5 {[%emt 0:00:00]} Bxh5 {[%emt 0:00:00]} 50. Rxh5 {[%emt 0:00:00]} Bf8 {[%emt 0:00:00]} 51. Kg3 {[%emt 0:00:00]} Kg6 {[%emt 0:00:00]} 52. Rh8 {[%emt 0:00:00]} Kg7 {[%emt 0:00:00]} 53. Rh6 {[%emt 0:00:00]} Kf7 {[%emt 0:00:00]} 54. Rf6+ {[%emt 0:00:00]} Ke7 {[%emt 0:00:00]} 55. f5 {[%emt 0:00:00]} exf5 {[%emt 0:00:24]} 56. Kf4 {[%emt 0:00:47]} Bg7 {[%emt 0:05:03]} 57. Rxa6 {[%emt 0:02:26]} Kf7 {[%emt 0:00:58]} 58. Rb6 {[%emt 0:02:40]} 1-0

[Event "ESTCC 50 2019"]
[Site "Mali Losinj"]
[Date "2019.09.23"]
[Round "6.12"]
[White "Plesec, Damjan"]
[Black "Detter, Peter"]
[Result "1/2-1/2"]
[ECO "A06"]
[WhiteElo "2216"]
[BlackElo "1982"]
[Annotator "NA"]
[PlyCount "81"]
[EventDate "2019.09.18"]
[EventType "team-tourn"]
[EventCountry "CRO"]
[SourceTitle "playchess.com"]
[Source "ChessBase"]
[SourceQuality "1"]
[WhiteTeam "Slovenia"]
[BlackTeam "Austria"]
[WhiteTeamCountry "SLO"]
[BlackTeamCountry "AUT"]
[TimeControl "40/5400+30:1800+30"]

1. b3 {[%emt 0:05:30]} d5 {[%emt 0:00:30]} 2. Bb2 {[%emt 0:00:30]} Bg4 {[%emt 0:00:30]} 3. Nf3 {[%emt 0:02:30]} Bxf3 {[%emt 0:00:00]} 4. gxf3 {[%emt 0:00:30]} Nd7 {[%emt 0:06:00]} 5. c4 {[%emt 0:01:30]} e6 {[%emt 0:00:30]} 6. e3 {[%emt 0:03:30]} Ngf6 {[%emt 0:00:30]} 7. Nc3 {[%emt 0:00:30]} c6 {[%emt 0:03:30]} 8. cxd5 {[%emt 0:01:30]} exd5 {[%emt 0:00:30]} 9. Qc2 {[%emt 0:03:30]} Bd6 {[%emt 0:03:30]} 10. Ne2 {[%emt 0:03:30]} Qe7 {[%emt 0:02:30]} 11. Nd4 {[%emt 0:06:30]} g6 {[%emt 0:03:30]} 12. a3 {[%emt 0:01:30]} c5 {[%emt 0:16:30]} 13. Nb5 {[%emt 0:03:30]} Be5 {[%emt 0:04:30]} 14. d4 {[%emt 0:01:30]} cxd4 {[%emt 0:00:30]} 15. Nxd4 {[%emt 0:00:30]} O-O {[%emt 0:02:30]} 16. Be2 {[%emt 0:04:30]} Rac8 {[%emt 0:01:30]} 17. Qd1 {[%emt 0:02:30]} Rfe8 {[%emt 0:08:30]} 18. Rc1 {[%emt 0:09:30]} Rxc1 {[%emt 0:01:30]} 19. Qxc1 {[%emt 0:00:30]} Qc5 {[%emt 0:02:30]} 20. Qxc5 {[%emt 0:08:30]} Nxc5 {[%emt 0:00:30]} 21. f4 {[%emt 0:00:30]} Bb8 {[%emt 0:02:30]} 22. Bb5 {[%emt 0:02:30]} Ncd7 {[%emt 0:05:30]} 23. O-O {[%emt 0:03:30]} a6 {[%emt 0:01:30]} 24. Be2 {[%emt 0:01:30]} Rc8 {[%emt 0:01:30]} 25. Rd1 {[%emt 0:07:30]} Ne4 {[%emt 0:04:30]} 26. Kf1 {[%emt 0:00:00]} Ba7 {[%emt 0:02:30]} 27. Bd3 {[%emt 0:02:00]} Ndc5 {[%emt 0:04:30]} 28. Bb1 {[%emt 0:01:30]} Re8 {[%emt 0:01:30]} 29. Ba2 {[%emt 0:03:30]} Ne6 {[%emt 0:02:43]} 30. Nf3 {[%emt 0:01:15]} d4 {[%emt 0:01:22]} 31. Nxd4 {[%emt 0:01:48]} Bxd4 {[%emt 0:00:50]} 32. Bxd4 {[%emt 0:06:38]} Nxd4 {[%emt 0:00:09]} 33. Rxd4 {[%emt 0:00:05]} Nc3 {[%emt 0:00:11]} 34. Rd2 {[%emt 0:00:04]} Kg7 {[%emt 0:05:17]} 35. Ke1 {[%emt 0:00:47]} Rc8 {[%emt 0:01:15]} 36. Rc2 {[%emt 0:01:10]} Rc6 {[%emt 0:00:05]} 37. b4 {[%emt 0:02:57]} Nxa2 {[%emt 0:00:11]} 38. Rxa2 {[%emt 0:00:06]} Rc1+ {[%emt 0:02:03]} 39. Ke2 {[%emt 0:00:10]} Rh1 {[%emt 0:00:14]} 40. b5 {[%emt 0:03:34]} Rxh2 {[%emt 0:03:26]} 41. bxa6 {[%emt 0:36:35]} 1/2-1/2

[Event "ESTCC 50 2019"]
[Site "Mali Losinj"]
[Date "2019.09.23"]
[Round "6.13"]
[White "Ledger, Andrew J"]
[Black "Wallace, Paul"]
[Result "1-0"]
[ECO "E81"]
[WhiteElo "2343"]
[BlackElo "2153"]
[Annotator "NA"]
[PlyCount "61"]
[EventDate "2019.09.18"]
[EventType "team-tourn"]
[EventCountry "CRO"]
[SourceTitle "playchess.com"]
[Source "ChessBase"]
[SourceQuality "1"]
[WhiteTeam "England"]
[BlackTeam "Ireland"]
[WhiteTeamCountry "ENG"]
[BlackTeamCountry "AUS"]
[TimeControl "40/5400+30:1800+30"]

1. d4 {[%emt 0:00:30]} Nf6 {[%emt 0:00:30]} 2. c4 {[%emt 0:00:00]} g6 {[%emt 0:00:00]} 3. Nc3 {[%emt 0:00:00]} Bg7 {[%emt 0:00:00]} 4. e4 {[%emt 0:00:30]} d6 {[%emt 0:00:00]} 5. f3 {[%emt 0:00:30]} O-O {[%emt 0:00:00]} 6. Bg5 {[%emt 0:00:00]} c5 {[%emt 0:03:30]} 7. d5 {[%emt 0:00:00]} a6 {[%emt 0:00:30]} 8. a4 {[%emt 0:02:30]} Nbd7 {[%emt 0:16:30]} 9. Nh3 {[%emt 0:05:30]} Re8 {[%emt 0:03:30]} 10. Be2 {[%emt 0:02:30]} h6 {[%emt 0:04:30]} 11. Be3 {[%emt 0:01:30]} Ne5 {[%emt 0:04:30]} 12. Nf2 {[%emt 0:00:30]} e6 {[%emt 0:00:30]} 13. Qd2 {[%emt 0:05:30]} exd5 {[%emt 0:00:30]} 14. cxd5 {[%emt 0:00:30]} h5 {[%emt 0:01:30]} 15. h3 {[%emt 0:07:30]} Qe7 {[%emt 0:08:30]} 16. O-O {[%emt 0:02:30]} Nh7 {[%emt 0:01:30]} 17. f4 {[%emt 0:12:30]} Nd7 {[%emt 0:00:30]} 18. Rae1 {[%emt 0:01:30]} Rb8 {[%emt 0:04:30]} 19. Bd3 {[%emt 0:05:30]} Qf8 {[%emt 0:03:30]} 20. e5 {[%emt 0:05:30]} dxe5 {[%emt 0:10:30]} 21. f5 {[%emt 0:00:30]} gxf5 {[%emt 0:01:30]} 22. Bxf5 {[%emt 0:00:30]} Nhf6 {[%emt 0:01:30]} 23. Nfe4 {[%emt 0:04:30]} b5 {[%emt 0:08:30]} 24. Qe2 {[%emt 0:16:30]} bxa4 {[%emt 0:09:28]} 25. Bxd7 {[%emt 0:08:03]} Nxd7 {[%emt 0:00:06]} 26. Qxh5 {[%emt 0:00:50]} Qe7 {[%emt 0:05:21]} 27. Ng5 {[%emt 0:04:42]} Nf6 {[%emt 0:06:23]} 28. Rxf6 {[%emt 0:00:14]} Bxf6 {[%emt 0:00:32]} 29. Qh7+ {[%emt 0:00:27]} Kf8 {[%emt 0:00:04]} 30. Nce4 {[%emt 0:03:18]} Rb5 {[%emt 0:01:19]} 31. d6 {[%emt 0:01:19]} 1-0

[Event "ESTCC 50 2019"]
[Site "Mali Losinj"]
[Date "2019.09.23"]
[Round "6.14"]
[White "Fox, Anthony"]
[Black "Lewis, Andrew P"]
[Result "1/2-1/2"]
[ECO "B23"]
[WhiteElo "2023"]
[BlackElo "2294"]
[Annotator "NA"]
[PlyCount "96"]
[EventDate "2019.09.18"]
[EventType "team-tourn"]
[EventCountry "CRO"]
[SourceTitle "playchess.com"]
[Source "ChessBase"]
[SourceQuality "1"]
[WhiteTeam "Ireland"]
[BlackTeam "England"]
[WhiteTeamCountry "IRL"]
[BlackTeamCountry "ENG"]
[TimeControl "40/5400+30:1800+30"]

1. e4 {[%emt 0:00:30]} c5 {[%emt 0:00:30]} 2. Nc3 {[%emt 0:00:00]} a6 {[%emt 0:00:30]} 3. a4 {[%emt 0:00:00]} Nc6 {[%emt 0:00:30]} 4. g3 {[%emt 0:00:30]} g6 {[%emt 0:00:30]} 5. Bg2 {[%emt 0:00:00]} Bg7 {[%emt 0:00:30]} 6. d3 {[%emt 0:00:00]} d6 {[%emt 0:00:30]} 7. Be3 {[%emt 0:02:30]} e6 {[%emt 0:01:30]} 8. Nge2 {[%emt 0:03:30]} Nd4 {[%emt 0:01:30]} 9. O-O {[%emt 0:01:30]} Ne7 {[%emt 0:00:30]} 10. Qd2 {[%emt 0:01:30]} O-O {[%emt 0:01:30]} 11. Nd1 {[%emt 0:07:30]} b6 {[%emt 0:15:30]} 12. Nc1 {[%emt 0:01:30]} d5 {[%emt 0:02:30]} 13. c3 {[%emt 0:01:30]} Ndc6 {[%emt 0:00:30]} 14. exd5 {[%emt 0:08:30]} Nxd5 {[%emt 0:03:30]} 15. Bh6 {[%emt 0:02:30]} Bxh6 {[%emt 0:01:30]} 16. Qxh6 {[%emt 0:00:30]} Ra7 {[%emt 0:00:30]} 17. Ne3 {[%emt 0:04:30]} Nce7 {[%emt 0:04:30]} 18. Nxd5 {[%emt 0:02:30]} Nxd5 {[%emt 0:05:30]} 19. Nb3 {[%emt 0:09:30]} a5 {[%emt 0:09:30]} 20. d4 {[%emt 0:05:30]} Ba6 {[%emt 0:04:30]} 21. Rfe1 {[%emt 0:11:30]} Rc7 {[%emt 0:10:30]} 22. dxc5 {[%emt 0:06:30]} bxc5 {[%emt 0:00:30]} 23. Rad1 {[%emt 0:02:30]} Qb8 {[%emt 0:09:30]} 24. Nd2 {[%emt 0:03:30]} Nf6 {[%emt 0:10:52]} 25. Qf4 {[%emt 0:07:26]} Kg7 {[%emt 0:05:39]} 26. Ne4 {[%emt 0:01:25]} Nxe4 {[%emt 0:00:48]} 27. Bxe4 {[%emt 0:01:45]} Ra7 {[%emt 0:01:51]} 28. Qe3 {[%emt 0:03:14]} Rc8 {[%emt 0:02:28]} 29. h4 {[%emt 0:01:05]} h5 {[%emt 0:02:14]} 30. Rd2 {[%emt 0:04:08]} Qb3 {[%emt 0:01:51]} 31. Bf3 {[%emt 0:02:20]} Qxa4 {[%emt 0:00:58]} 32. Red1 {[%emt 0:01:43]} Qe8 {[%emt 0:00:53]} 33. Bxh5 {[%emt 0:01:56]} Qe7 {[%emt 0:01:09]} 34. Bf3 {[%emt 0:00:22]} Qf6 {[%emt 0:00:54]} 35. Kg2 {[%emt 0:01:44]} Bb7 {[%emt 0:01:12]} 36. Rd7 {[%emt 0:00:05]} Bxf3+ {[%emt 0:00:00]} 37. Qxf3 {[%emt 0:00:58]} Rxd7 {[%emt 0:00:44]} 38. Rxd7 {[%emt 0:00:30]} Qxf3+ {[%emt 0:00:36]} 39. Kxf3 {[%emt 0:00:39]} Rb8 {[%emt 0:00:13]} 40. Ra7 {[%emt 0:00:31]} Rb5 {[%emt 0:00:00]} 41. Ke3 {[%emt 0:02:39]} c4 {[%emt 0:06:38]} 42. Rc7 {[%emt 0:00:30]} Rxb2 {[%emt 0:07:59]} 43. Rxc4 {[%emt 0:00:30]} Ra2 {[%emt 0:00:07]} 44. Rc7 {[%emt 0:00:30]} a4 {[%emt 0:00:18]} 45. Ra7 {[%emt 0:01:30]} a3 {[%emt 0:00:23]} 46. c4 {[%emt 0:00:30]} Ra1 {[%emt 0:05:40]} 47. c5 {[%emt 0:01:30]} a2 {[%emt 0:01:18]} 48. Kf3 {[%emt 0:00:30]} Rc1 {[%emt 0:03:20]} 1/2-1/2

[Event "ESTCC 50 2019"]
[Site "Mali Losinj"]
[Date "2019.09.23"]
[Round "6.15"]
[White "Ledger, Dave J"]
[Black "Cafolla, Peter"]
[Result "1-0"]
[ECO "B33"]
[WhiteElo "2134"]
[BlackElo "1919"]
[Annotator "NA"]
[PlyCount "111"]
[EventDate "2019.09.18"]
[EventType "team-tourn"]
[EventCountry "CRO"]
[SourceTitle "playchess.com"]
[Source "ChessBase"]
[SourceQuality "1"]
[WhiteTeam "England"]
[BlackTeam "Ireland"]
[WhiteTeamCountry "ENG"]
[BlackTeamCountry "IRL"]
[TimeControl "40/5400+30:1800+30"]

1. e4 {[%emt 0:00:30]} c5 {[%emt 0:02:30]} 2. Nf3 {[%emt 0:01:30]} Nc6 {[%emt 0:00:30]} 3. d4 {[%emt 0:00:00]} cxd4 {[%emt 0:00:00]} 4. Nxd4 {[%emt 0:00:00]} Nf6 {[%emt 0:00:00]} 5. Nc3 {[%emt 0:00:30]} e5 {[%emt 0:00:30]} 6. Ndb5 {[%emt 0:00:30]} d6 {[%emt 0:00:30]} 7. Nd5 {[%emt 0:01:30]} Nxd5 {[%emt 0:00:30]} 8. exd5 {[%emt 0:00:00]} Nb8 {[%emt 0:00:30]} 9. a4 {[%emt 0:01:00]} a6 {[%emt 0:00:30]} 10. Na3 {[%emt 0:00:30]} Be7 {[%emt 0:02:30]} 11. Nc4 {[%emt 0:02:30]} b6 {[%emt 0:04:30]} 12. Be2 {[%emt 0:06:30]} O-O {[%emt 0:00:30]} 13. O-O {[%emt 0:02:30]} Nd7 {[%emt 0:04:30]} 14. f4 {[%emt 0:07:30]} f5 {[%emt 0:02:30]} 15. Be3 {[%emt 0:05:30]} Rb8 {[%emt 0:03:30]} 16. b4 {[%emt 0:04:30]} Kh8 {[%emt 0:03:30]} 17. Qd2 {[%emt 0:07:30]} Qc7 {[%emt 0:07:30]} 18. Rad1 {[%emt 0:05:30]} Bf6 {[%emt 0:09:30]} 19. fxe5 {[%emt 0:10:30]} Nxe5 {[%emt 0:00:30]} 20. Nxe5 {[%emt 0:01:30]} Bxe5 {[%emt 0:01:30]} 21. c4 {[%emt 0:00:30]} a5 {[%emt 0:03:30]} 22. Rb1 {[%emt 0:11:30]} Bd7 {[%emt 0:01:30]} 23. g3 {[%emt 0:02:30]} Qd8 {[%emt 0:16:30]} 24. c5 {[%emt 0:07:38]} dxc5 {[%emt 0:03:30]} 25. bxc5 {[%emt 0:00:23]} bxc5 {[%emt 0:03:30]} 26. Bxc5 {[%emt 0:00:29]} Re8 {[%emt 0:03:30]} 27. Bh5 {[%emt 0:07:11]} g6 {[%emt 0:00:30]} 28. Bf3 {[%emt 0:02:09]} Bxa4 {[%emt 0:06:34]} 29. Bd4 {[%emt 0:02:10]} Qf6 {[%emt 0:01:15]} 30. Bxe5 {[%emt 0:01:44]} Qxe5 {[%emt 0:00:17]} 31. Rxb8 {[%emt 0:00:39]} Rxb8 {[%emt 0:01:44]} 32. Re1 {[%emt 0:02:30]} Qb2 {[%emt 0:02:12]} 33. Qxa5 {[%emt 0:01:39]} Qb6+ {[%emt 0:00:23]} 34. Qxb6 {[%emt 0:00:06]} Rxb6 {[%emt 0:00:05]} 35. Re7 {[%emt 0:01:41]} Rd6 {[%emt 0:00:51]} 36. Rb7 {[%emt 0:00:38]} Bc2 {[%emt 0:01:44]} 37. Kf2 {[%emt 0:00:26]} h5 {[%emt 0:04:05]} 38. Ke3 {[%emt 0:01:01]} g5 {[%emt 0:00:56]} 39. Kd4 {[%emt 0:00:32]} Kg8 {[%emt 0:00:52]} 40. Ke5 {[%emt 0:00:33]} Rd8 {[%emt 0:00:56]} 41. Rc7 {[%emt 0:32:49]} Re8+ {[%emt 0:02:06]} 42. Kf6 {[%emt 0:00:00]} Be4 {[%emt 0:00:00]} 43. Bxh5 {[%emt 0:00:00]} Rf8+ {[%emt 0:05:00]} 44. Bf7+ {[%emt 0:00:00]} Kh8 {[%emt 0:00:30]} 45. Kxg5 {[%emt 0:00:00]} f4 {[%emt 0:01:30]} 46. gxf4 {[%emt 0:00:00]} Bxd5 {[%emt 0:00:30]} 47. Bg6 {[%emt 0:00:00]} Bg8 {[%emt 0:03:30]} 48. f5 {[%emt 0:00:00]} Ra8 {[%emt 0:00:30]} 49. h4 {[%emt 0:00:00]} Rb8 {[%emt 0:02:30]} 50. f6 {[%emt 0:00:00]} Bd5 {[%emt 0:08:37]} 51. Rh7+ {[%emt 0:00:00]} Kg8 {[%emt 0:00:23]} 52. f7+ {[%emt 0:00:00]} Bxf7 {[%emt 0:00:30]} 53. Rxf7 {[%emt 0:00:00]} Rd8 {[%emt 0:00:45]} 54. Kh6 {[%emt 0:00:00]} Rf8 {[%emt 0:03:34]} 55. Rxf8+ {[%emt 0:00:00]} Kxf8 {[%emt 0:00:12]} 56. Kh7 {[%emt 0:00:00]} 1-0